[Event "Late-Titled-Tuesday-Blitz-July-09-2024"]
[Site "Chess.com"]
[Date "2024.07.09"]
[Round "10"]
[White "ChessLover0108"]
[Black "champ2005"]
[Result "1-0"]
[WhiteElo "2964"]
[BlackElo "3040"]
[TimeControl "180+1"]
[EndTime "15:53:52 PDT"]
[Termination "ChessLover0108 won by checkmate"]

1. Nf3 {[%clk 0:03:00.9]} 1... Nf6 {[%clk 0:02:59.8]} 2. d4 {[%clk 0:03:00.8]}
2... b6 {[%clk 0:02:59.7]} 3. g3 {[%clk 0:03:00.2]} 3... Bb7 {[%clk 0:02:59.8]}
4. Bg2 {[%clk 0:03:01.1]} 4... e6 {[%clk 0:02:59.5]} 5. c4 {[%clk 0:03:00.5]}
5... Be7 {[%clk 0:02:59.4]} 6. O-O {[%clk 0:03:00.6]} 6... O-O {[%clk 0:03:00]}
7. Re1 {[%clk 0:02:59.8]} 7... a5 {[%clk 0:02:59.6]} 8. a3 {[%clk 0:02:31.9]}
8... d6 {[%clk 0:02:46.1]} 9. d5 {[%clk 0:02:12.8]} 9... e5 {[%clk 0:02:22.8]}
10. Nc3 {[%clk 0:02:11]} 10... Na6 {[%clk 0:02:20]} 11. Rb1 {[%clk 0:02:11.2]}
11... Nd7 {[%clk 0:02:19]} 12. b4 {[%clk 0:02:09]} 12... axb4 {[%clk 0:02:18.9]}
13. axb4 {[%clk 0:02:09.9]} 13... f5 {[%clk 0:02:18.9]} 14. e4 {[%clk
0:02:06.4]} 14... f4 {[%clk 0:02:19.1]} 15. gxf4 {[%clk 0:02:07.3]} 15... exf4
{[%clk 0:02:06.1]} 16. Nd4 {[%clk 0:02:07.2]} 16... Ne5 {[%clk 0:02:06.6]} 17.
Ne6 {[%clk 0:02:06.2]} 17... Qd7 {[%clk 0:02:07]} 18. Bxf4 {[%clk 0:02:04.3]}
18... Nxc4 {[%clk 0:01:47.2]} 19. Nxf8 {[%clk 0:02:02.6]} 19... Rxf8 {[%clk
0:01:48.1]} 20. Bg3 {[%clk 0:02:03.2]} 20... Bf6 {[%clk 0:01:43.4]} 21. Ne2
{[%clk 0:01:58.1]} 21... Qb5 {[%clk 0:01:24.9]} 22. Nd4 {[%clk 0:01:52.4]} 22...
Qe8 {[%clk 0:01:17.8]} 23. Ne6 {[%clk 0:01:49]} 23... Rf7 {[%clk 0:01:18.2]} 24.
f4 {[%clk 0:01:44.2]} 24... Be7 {[%clk 0:01:12.6]} 25. Kh1 {[%clk 0:01:30.2]}
25... b5 {[%clk 0:01:12.3]} 26. f5 {[%clk 0:01:15]} 26... Bf6 {[%clk 0:01:10.9]}
27. Bf3 {[%clk 0:01:14.2]} 27... Re7 {[%clk 0:01:09.4]} 28. Rg1 {[%clk
0:01:14.4]} 28... Kh8 {[%clk 0:01:05.2]} 29. Bf4 {[%clk 0:01:14]} 29... c6
{[%clk 0:00:58.9]} 30. Bg5 {[%clk 0:01:09.2]} 30... Bxg5 {[%clk 0:00:54]} 31.
Rxg5 {[%clk 0:01:10.1]} 31... cxd5 {[%clk 0:00:53.9]} 32. exd5 {[%clk
0:01:09.9]} 32... Ne5 {[%clk 0:00:53.7]} 33. Bg2 {[%clk 0:01:07.9]} 33... Rf7
{[%clk 0:00:46.6]} 34. Qh5 {[%clk 0:01:06.4]} 34... Qe7 {[%clk 0:00:43.8]} 35.
Rg1 {[%clk 0:01:06.4]} 35... Nxb4 {[%clk 0:00:38.7]} 36. Be4 {[%clk 0:00:25.4]}
36... Nxd5 {[%clk 0:00:38.5]} 37. Rxg7 {[%clk 0:00:15.2]} 37... Rxg7 {[%clk
0:00:17.4]} 38. Rxg7 {[%clk 0:00:16.1]} 38... Nf6 {[%clk 0:00:14]} 39. Rxe7
{[%clk 0:00:11.3]} 39... Bxe4+ {[%clk 0:00:14.2]} 40. Kg1 {[%clk 0:00:11.9]}
40... Nxh5 {[%clk 0:00:14.2]} 41. Re8# {[%clk 0:00:12.3]} 1-0

[Event "Late-Titled-Tuesday-Blitz-July-09-2024"]
[Site "Chess.com"]
[Date "2024.07.09"]
[Round "10"]
[White "eightbyeightchess"]
[Black "FuenfgegenWilly"]
[Result "0-1"]
[WhiteElo "2382"]
[BlackElo "2531"]
[TimeControl "180+1"]
[EndTime "15:53:54 PDT"]
[Termination "FuenfgegenWilly won by checkmate"]

1. e4 {[%clk 0:03:00.9]} 1... c6 {[%clk 0:02:58.9]} 2. d4 {[%clk 0:02:59.9]}
2... g6 {[%clk 0:02:59]} 3. c4 {[%clk 0:02:59.1]} 3... Bg7 {[%clk 0:02:59.9]} 4.
Nc3 {[%clk 0:02:59.4]} 4... a6 {[%clk 0:02:58.2]} 5. Nf3 {[%clk 0:02:59.4]} 5...
b5 {[%clk 0:02:58.5]} 6. cxb5 {[%clk 0:02:59.2]} 6... cxb5 {[%clk 0:02:58.7]} 7.
a3 {[%clk 0:02:56.7]} 7... Bb7 {[%clk 0:02:58.8]} 8. Bf4 {[%clk 0:02:56]} 8...
Nf6 {[%clk 0:02:57.3]} 9. Bd3 {[%clk 0:02:55.3]} 9... d5 {[%clk 0:02:53.5]} 10.
e5 {[%clk 0:02:54.6]} 10... Ne4 {[%clk 0:02:53.2]} 11. e6 {[%clk 0:02:50.9]}
11... fxe6 {[%clk 0:02:52.3]} 12. Bxe4 {[%clk 0:02:50.6]} 12... dxe4 {[%clk
0:02:52.4]} 13. Ng5 {[%clk 0:02:51.2]} 13... Qxd4 {[%clk 0:02:44.5]} 14. Qxd4
{[%clk 0:02:49.9]} 14... Bxd4 {[%clk 0:02:44.2]} 15. Nxe6 {[%clk 0:02:50]} 15...
Bb6 {[%clk 0:02:42]} 16. Bc7 {[%clk 0:02:27]} 16... Kd7 {[%clk 0:02:24.7]} 17.
Bxb6 {[%clk 0:02:16.5]} 17... Kxe6 {[%clk 0:02:20.6]} 18. O-O-O {[%clk
0:02:16.1]} 18... Nd7 {[%clk 0:02:17.7]} 19. Bd4 {[%clk 0:02:12.8]} 19... Nf6
{[%clk 0:02:11]} 20. Rhe1 {[%clk 0:02:12.8]} 20... Rac8 {[%clk 0:02:07.2]} 21.
Kb1 {[%clk 0:02:10.5]} 21... Kf5 {[%clk 0:02:06.7]} 22. f3 {[%clk 0:02:00.3]}
22... e5 {[%clk 0:02:01.3]} 23. fxe4+ {[%clk 0:01:57.6]} 23... Nxe4 {[%clk
0:02:01.3]} 24. g4+ {[%clk 0:01:28.9]} 24... Kf4 {[%clk 0:01:56]} 25. Rf1+
{[%clk 0:01:05]} 25... Kxg4 {[%clk 0:01:55.9]} 26. Bxe5 {[%clk 0:01:04]} 26...
Nxc3+ {[%clk 0:01:53.8]} 27. bxc3 {[%clk 0:01:00.1]} 27... Rhe8 {[%clk
0:01:47.8]} 28. Rd4+ {[%clk 0:00:54]} 28... Kh5 {[%clk 0:01:41.9]} 29. Bf6
{[%clk 0:00:49.6]} 29... Be4+ {[%clk 0:01:38.9]} 30. Kb2 {[%clk 0:00:48.2]}
30... g5 {[%clk 0:01:33.4]} 31. Rg1 {[%clk 0:00:38.2]} 31... h6 {[%clk 0:01:33]}
32. h4 {[%clk 0:00:27.5]} 32... g4 {[%clk 0:01:27.7]} 33. Re1 {[%clk 0:00:21.7]}
33... Bf3 {[%clk 0:01:26.9]} 34. Rf1 {[%clk 0:00:09.6]} 34... Rc6 {[%clk
0:01:19.8]} 35. Bg7 {[%clk 0:00:09]} 35... Rg6 {[%clk 0:01:15.1]} 36. Rd7 {[%clk
0:00:07.1]} 36... Re2+ {[%clk 0:01:06.5]} 37. Kb3 {[%clk 0:00:06.7]} 37... Kxh4
{[%clk 0:00:59.9]} 38. Bd4 {[%clk 0:00:06.6]} 38... h5 {[%clk 0:00:57.7]} 39.
Rh7 {[%clk 0:00:05.8]} 39... Bd5+ {[%clk 0:00:52.7]} 40. Kb4 {[%clk 0:00:05.3]}
40... Rb2+ {[%clk 0:00:36]} 41. Kc5 {[%clk 0:00:05.4]} 41... Bg2 {[%clk
0:00:20.9]} 42. Rg1 {[%clk 0:00:01.9]} 42... Rc6# {[%clk 0:00:20.1]} 0-1

[Event "Late-Titled-Tuesday-Blitz-July-09-2024"]
[Site "Chess.com"]
[Date "2024.07.09"]
[Round "10"]
[White "cthake"]
[Black "flaviorcb"]
[Result "1-0"]
[WhiteElo "1859"]
[BlackElo "2177"]
[TimeControl "180+1"]
[EndTime "15:54:01 PDT"]
[Termination "cthake won on time"]

1. e4 {[%clk 0:03:00.9]} 1... c5 {[%clk 0:02:58.4]} 2. Nf3 {[%clk 0:02:59.9]}
2... g6 {[%clk 0:02:58.9]} 3. d4 {[%clk 0:02:59.6]} 3... cxd4 {[%clk 0:02:59.8]}
4. Nxd4 {[%clk 0:02:59.7]} 4... Nc6 {[%clk 0:03:00.1]} 5. Nxc6 {[%clk
0:02:57.8]} 5... bxc6 {[%clk 0:02:59.5]} 6. Qd4 {[%clk 0:02:56]} 6... Nf6 {[%clk
0:03:00]} 7. e5 {[%clk 0:02:53.4]} 7... Nd5 {[%clk 0:02:59.9]} 8. e6 {[%clk
0:02:50.6]} 8... Nf6 {[%clk 0:03:00.1]} 9. exf7+ {[%clk 0:02:49.6]} 9... Kxf7
{[%clk 0:03:01]} 10. Nc3 {[%clk 0:02:45.2]} 10... Bg7 {[%clk 0:02:54.2]} 11.
Bc4+ {[%clk 0:02:42]} 11... d5 {[%clk 0:02:28.7]} 12. Bb3 {[%clk 0:02:29.1]}
12... e5 {[%clk 0:02:28.2]} 13. Qh4 {[%clk 0:02:21.8]} 13... h6 {[%clk 0:02:24]}
14. O-O {[%clk 0:02:19.4]} 14... Be6 {[%clk 0:02:24.2]} 15. Qa4 {[%clk
0:02:10.7]} 15... Qb6 {[%clk 0:02:19.1]} 16. Bd2 {[%clk 0:01:47.8]} 16... Rhf8
{[%clk 0:02:11.7]} 17. Rad1 {[%clk 0:01:29.8]} 17... Kg8 {[%clk 0:02:09]} 18. h3
{[%clk 0:01:21.4]} 18... Rae8 {[%clk 0:02:08.5]} 19. Rde1 {[%clk 0:01:16.8]}
19... Bf7 {[%clk 0:02:00.1]} 20. Qh4 {[%clk 0:00:59.9]} 20... Qd4 {[%clk
0:01:48.4]} 21. Qxd4 {[%clk 0:00:55.8]} 21... exd4 {[%clk 0:01:49.3]} 22. Na4
{[%clk 0:00:52.9]} 22... Ne4 {[%clk 0:01:47.9]} 23. Bc1 {[%clk 0:00:46.6]} 23...
g5 {[%clk 0:01:29.3]} 24. a3 {[%clk 0:00:32.3]} 24... Kh8 {[%clk 0:01:28.8]} 25.
g3 {[%clk 0:00:18.9]} 25... Bg6 {[%clk 0:01:25]} 26. Kg2 {[%clk 0:00:18.5]}
26... Be5 {[%clk 0:01:14.5]} 27. h4 {[%clk 0:00:15.7]} 27... gxh4 {[%clk
0:01:12.1]} 28. Bxh6 {[%clk 0:00:14.1]} 28... Rg8 {[%clk 0:01:02.2]} 29. Rh1
{[%clk 0:00:14]} 29... Bh7 {[%clk 0:00:57.6]} 30. Rxh4 {[%clk 0:00:12.8]} 30...
Bg7 {[%clk 0:00:26.2]} 31. Reh1 {[%clk 0:00:12]} 31... Bxh6 {[%clk 0:00:17.4]}
32. Rxh6 {[%clk 0:00:12]} 32... Rg7 {[%clk 0:00:16.6]} 33. Ba2 {[%clk
0:00:09.5]} 33... Rf8 {[%clk 0:00:16]} 34. f3 {[%clk 0:00:08.3]} 34... Nf6
{[%clk 0:00:12.8]} 35. g4 {[%clk 0:00:07]} 35... Kg8 {[%clk 0:00:05.9]} 36. Nc5
{[%clk 0:00:06.2]} 1-0

[Event "Late-Titled-Tuesday-Blitz-July-09-2024"]
[Site "Chess.com"]
[Date "2024.07.09"]
[Round "10"]
[White "stregachess"]
[Black "dodorox"]
[Result "1-0"]
[WhiteElo "2099"]
[BlackElo "2170"]
[TimeControl "180+1"]
[EndTime "15:54:03 PDT"]
[Termination "stregachess won on time"]

1. d4 {[%clk 0:03:00.9]} 1... Nf6 {[%clk 0:02:59.7]} 2. Nf3 {[%clk 0:03:01.1]}
2... d5 {[%clk 0:02:59.4]} 3. Bf4 {[%clk 0:03:01]} 3... c5 {[%clk 0:03:00]} 4.
c3 {[%clk 0:03:00.3]} 4... Nc6 {[%clk 0:02:56.9]} 5. e3 {[%clk 0:03:00.3]} 5...
Qb6 {[%clk 0:02:56.5]} 6. b3 {[%clk 0:03:00.1]} 6... Bf5 {[%clk 0:02:52.5]} 7.
Bd3 {[%clk 0:02:59.4]} 7... Bxd3 {[%clk 0:02:50.4]} 8. Qxd3 {[%clk 0:02:59.6]}
8... e6 {[%clk 0:02:50.9]} 9. O-O {[%clk 0:02:56.8]} 9... Rc8 {[%clk 0:02:47.8]}
10. Nbd2 {[%clk 0:02:55.4]} 10... Nh5 {[%clk 0:02:40]} 11. Bg3 {[%clk
0:02:45.7]} 11... Nxg3 {[%clk 0:02:39]} 12. hxg3 {[%clk 0:02:45.5]} 12... Bd6
{[%clk 0:02:38.2]} 13. a4 {[%clk 0:02:43.8]} 13... h6 {[%clk 0:02:33.2]} 14.
Rfc1 {[%clk 0:02:42.1]} 14... O-O {[%clk 0:02:30.7]} 15. dxc5 {[%clk 0:02:33.5]}
15... Bxc5 {[%clk 0:02:28.4]} 16. b4 {[%clk 0:02:31.9]} 16... Be7 {[%clk
0:02:26.1]} 17. e4 {[%clk 0:02:27.9]} 17... dxe4 {[%clk 0:02:15.5]} 18. Qxe4
{[%clk 0:02:27.6]} 18... Bf6 {[%clk 0:02:12.6]} 19. Nc4 {[%clk 0:01:52]} 19...
Qc7 {[%clk 0:02:01.8]} 20. b5 {[%clk 0:01:51.4]} 20... Ne7 {[%clk 0:01:45.6]}
21. Nce5 {[%clk 0:01:50.3]} 21... Nd5 {[%clk 0:01:40.1]} 22. c4 {[%clk
0:01:34.6]} 22... Ne7 {[%clk 0:01:20.6]} 23. Rab1 {[%clk 0:01:34.4]} 23... Rfd8
{[%clk 0:01:19.9]} 24. Ng4 {[%clk 0:01:30]} 24... Bg5 {[%clk 0:01:02.1]} 25.
Nxg5 {[%clk 0:01:24.5]} 25... hxg5 {[%clk 0:01:03]} 26. Qe3 {[%clk 0:01:17.6]}
26... Qc5 {[%clk 0:00:56.9]} 27. Qf3 {[%clk 0:01:05.5]} 27... b6 {[%clk
0:00:51.4]} 28. Ne3 {[%clk 0:00:59]} 28... Ng6 {[%clk 0:00:44.1]} 29. Qb7 {[%clk
0:00:48.4]} 29... Rc7 {[%clk 0:00:42.3]} 30. Qf3 {[%clk 0:00:47.8]} 30... Rd4
{[%clk 0:00:34.3]} 31. Rd1 {[%clk 0:00:46]} 31... Ne5 {[%clk 0:00:28.5]} 32.
Qa8+ {[%clk 0:00:38.4]} 32... Kh7 {[%clk 0:00:28.4]} 33. Rxd4 {[%clk 0:00:38.3]}
33... Qxd4 {[%clk 0:00:27.1]} 34. Qb8 {[%clk 0:00:35.8]} 34... Qc5 {[%clk
0:00:25.1]} 35. Rd1 {[%clk 0:00:34.7]} 35... Qe7 {[%clk 0:00:12.6]} 36. Rd8
{[%clk 0:00:34]} 36... Kg6 {[%clk 0:00:12.7]} 37. Rh8 {[%clk 0:00:32.3]} 37...
Rb7 {[%clk 0:00:11.4]} 38. Qg8 {[%clk 0:00:28.6]} 38... Kf6 {[%clk 0:00:06]} 39.
Qh7 {[%clk 0:00:25.8]} 39... Ng6 {[%clk 0:00:05.5]} 40. Rg8 {[%clk 0:00:25.3]}
40... Qc5 {[%clk 0:00:01.4]} 41. Qxg7+ {[%clk 0:00:22.8]} 41... Ke7 {[%clk
0:00:01]} 42. Rh8 {[%clk 0:00:19.4]} 1-0

[Event "Late-Titled-Tuesday-Blitz-July-09-2024"]
[Site "Chess.com"]
[Date "2024.07.09"]
[Round "10"]
[White "Richardmaster"]
[Black "Vladimir_2020"]
[Result "0-1"]
[WhiteElo "2542"]
[BlackElo "2782"]
[TimeControl "180+1"]
[EndTime "15:54:06 PDT"]
[Termination "Vladimir_2020 won by checkmate"]

1. e4 {[%clk 0:03:00.9]} 1... c5 {[%clk 0:02:59.2]} 2. Nf3 {[%clk 0:03:00.1]}
2... e6 {[%clk 0:02:59.2]} 3. d4 {[%clk 0:03:00.2]} 3... cxd4 {[%clk 0:02:59]}
4. Nxd4 {[%clk 0:03:00.9]} 4... a6 {[%clk 0:02:59.3]} 5. Bd3 {[%clk 0:03:00.1]}
5... Qc7 {[%clk 0:02:59.1]} 6. O-O {[%clk 0:02:59.7]} 6... Nf6 {[%clk
0:02:58.3]} 7. Qe2 {[%clk 0:02:59.7]} 7... d6 {[%clk 0:02:55.9]} 8. c4 {[%clk
0:02:59.6]} 8... Be7 {[%clk 0:02:55.6]} 9. b3 {[%clk 0:02:56.6]} 9... O-O {[%clk
0:02:52.4]} 10. Bb2 {[%clk 0:02:56]} 10... Nbd7 {[%clk 0:02:49.6]} 11. Nc3
{[%clk 0:02:54.5]} 11... b6 {[%clk 0:02:47.1]} 12. Rae1 {[%clk 0:02:51.6]} 12...
Bb7 {[%clk 0:02:45.3]} 13. Kh1 {[%clk 0:02:51.7]} 13... Rfe8 {[%clk 0:02:40.2]}
14. f4 {[%clk 0:02:48.4]} 14... e5 {[%clk 0:02:39.4]} 15. Nf5 {[%clk 0:02:42.7]}
15... Bf8 {[%clk 0:02:38.8]} 16. Nd5 {[%clk 0:02:12.3]} 16... Bxd5 {[%clk
0:02:37.7]} 17. exd5 {[%clk 0:02:13.2]} 17... g6 {[%clk 0:02:21.4]} 18. fxe5
{[%clk 0:01:14.6]} 18... Nxe5 {[%clk 0:02:17.9]} 19. Nd4 {[%clk 0:00:49.1]}
19... Bg7 {[%clk 0:02:11.7]} 20. Bb1 {[%clk 0:00:42.4]} 20... Qd7 {[%clk
0:01:53.2]} 21. h3 {[%clk 0:00:39.7]} 21... Rac8 {[%clk 0:01:40.4]} 22. Qf2
{[%clk 0:00:37.3]} 22... b5 {[%clk 0:01:38.9]} 23. Nc6 {[%clk 0:00:36.8]} 23...
bxc4 {[%clk 0:01:30.6]} 24. bxc4 {[%clk 0:00:36.1]} 24... Nh5 {[%clk 0:01:19.5]}
25. Nxe5 {[%clk 0:00:32.2]} 25... dxe5 {[%clk 0:01:07.4]} 26. Rc1 {[%clk
0:00:17.7]} 26... f5 {[%clk 0:01:00.5]} 27. Rfd1 {[%clk 0:00:12.7]} 27... e4
{[%clk 0:00:47.5]} 28. Bxg7 {[%clk 0:00:11.3]} 28... Kxg7 {[%clk 0:00:46.3]} 29.
c5 {[%clk 0:00:11.1]} 29... f4 {[%clk 0:00:40]} 30. Qd4+ {[%clk 0:00:09.2]}
30... Kh6 {[%clk 0:00:39.9]} 31. Bxe4 {[%clk 0:00:09.3]} 31... Rxe4 {[%clk
0:00:37.5]} 32. Qd2 {[%clk 0:00:05.8]} 32... Rce8 {[%clk 0:00:31.3]} 33. c6
{[%clk 0:00:05.6]} 33... Qd6 {[%clk 0:00:24.6]} 34. c7 {[%clk 0:00:05.8]} 34...
Rc8 {[%clk 0:00:24.7]} 35. Qc2 {[%clk 0:00:05.2]} 35... Re7 {[%clk 0:00:23.5]}
36. Qc6 {[%clk 0:00:02.3]} 36... Qxc6 {[%clk 0:00:22.3]} 37. Rxc6 {[%clk
0:00:03]} 37... Rexc7 {[%clk 0:00:22.6]} 38. Rxa6 {[%clk 0:00:03.4]} 38... Rc1
{[%clk 0:00:20.7]} 39. Rxc1 {[%clk 0:00:03.4]} 39... Rxc1+ {[%clk 0:00:20.7]}
40. Kh2 {[%clk 0:00:04.3]} 40... Ng3 {[%clk 0:00:20.8]} 41. Rxg6+ {[%clk
0:00:05.2]} 41... hxg6 {[%clk 0:00:20.2]} 42. d6 {[%clk 0:00:06.1]} 42... Rh1#
{[%clk 0:00:19.7]} 0-1

[Event "Late-Titled-Tuesday-Blitz-July-09-2024"]
[Site "Chess.com"]
[Date "2024.07.09"]
[Round "10"]
[White "HouseOfDurin"]
[Black "Slovineanu"]
[Result "1-0"]
[WhiteElo "2329"]
[BlackElo "2508"]
[TimeControl "180+1"]
[EndTime "15:54:06 PDT"]
[Termination "HouseOfDurin won on time"]

1. d4 {[%clk 0:03:00.9]} 1... Nf6 {[%clk 0:02:56.7]} 2. Bg5 {[%clk 0:03:01.3]}
2... e6 {[%clk 0:02:54.9]} 3. e4 {[%clk 0:03:00.8]} 3... d5 {[%clk 0:02:53.3]}
4. Bxf6 {[%clk 0:02:56.8]} 4... Qxf6 {[%clk 0:02:50]} 5. e5 {[%clk 0:02:57.3]}
5... Qd8 {[%clk 0:02:49.2]} 6. Qg4 {[%clk 0:02:45.1]} 6... c5 {[%clk 0:02:45.1]}
7. c3 {[%clk 0:02:43.8]} 7... Qb6 {[%clk 0:02:37.3]} 8. Nd2 {[%clk 0:02:35.9]}
8... Qxb2 {[%clk 0:02:31]} 9. Rb1 {[%clk 0:02:35.6]} 9... Qxc3 {[%clk
0:02:30.7]} 10. Nf3 {[%clk 0:02:22.6]} 10... cxd4 {[%clk 0:02:10.8]} 11. Bb5+
{[%clk 0:02:21]} 11... Bd7 {[%clk 0:02:03.3]} 12. O-O {[%clk 0:02:18.3]} 12...
Nc6 {[%clk 0:01:49.5]} 13. Rfc1 {[%clk 0:02:04.2]} 13... Qa5 {[%clk 0:01:47.6]}
14. Bxc6 {[%clk 0:01:47.4]} 14... Bxc6 {[%clk 0:01:44.6]} 15. Nb3 {[%clk
0:01:47.8]} 15... Qxa2 {[%clk 0:01:09.3]} 16. Nbxd4 {[%clk 0:01:44.2]} 16... h5
{[%clk 0:01:06]} 17. Qg5 {[%clk 0:01:20.9]} 17... Qa3 {[%clk 0:00:46.1]} 18.
Nxc6 {[%clk 0:01:14.6]} 18... bxc6 {[%clk 0:00:34.6]} 19. Rxc6 {[%clk
0:01:00.2]} 19... Qe7 {[%clk 0:00:33.5]} 20. Qc1 {[%clk 0:00:53.2]} 20... Qd8
{[%clk 0:00:21.5]} 21. Rb7 {[%clk 0:00:28.9]} 21... Be7 {[%clk 0:00:19]} 22.
Rcc7 {[%clk 0:00:28.7]} 22... O-O {[%clk 0:00:17.6]} 23. Rxe7 {[%clk 0:00:27.2]}
23... a5 {[%clk 0:00:17]} 24. Ng5 {[%clk 0:00:20.4]} 24... a4 {[%clk 0:00:10.1]}
25. Nxe6 {[%clk 0:00:18.6]} 25... Qa5 {[%clk 0:00:07.8]} 26. Nxf8 {[%clk
0:00:08.9]} 26... Rxf8 {[%clk 0:00:08.2]} 27. h3 {[%clk 0:00:08.3]} 27... d4
{[%clk 0:00:05.4]} 28. e6 {[%clk 0:00:07.8]} 28... d3 {[%clk 0:00:03.7]} 29.
exf7+ {[%clk 0:00:06.6]} 29... Kh7 {[%clk 0:00:03.2]} 30. Qe3 {[%clk 0:00:04.1]}
30... d2 {[%clk 0:00:02.6]} 31. Rbd7 {[%clk 0:00:03.1]} 31... a3 {[%clk
0:00:02.4]} 32. Kh2 {[%clk 0:00:02.6]} 32... a2 {[%clk 0:00:02.1]} 33. Qe4+
{[%clk 0:00:01.8]} 33... Kh6 {[%clk 0:00:01.5]} 34. Qe3+ {[%clk 0:00:01.7]}
34... Kh7 {[%clk 0:00:01.5]} 35. Re5 {[%clk 0:00:01]} 1-0

[Event "Late-Titled-Tuesday-Blitz-July-09-2024"]
[Site "Chess.com"]
[Date "2024.07.09"]
[Round "10"]
[White "ZakinIlay2306"]
[Black "GAO"]
[Result "0-1"]
[WhiteElo "2318"]
[BlackElo "2441"]
[TimeControl "180+1"]
[EndTime "15:54:08 PDT"]
[Termination "GAO won by checkmate"]

1. e4 {[%clk 0:02:58.9]} 1... c5 {[%clk 0:02:58.8]} 2. Nf3 {[%clk 0:02:58.8]}
2... d6 {[%clk 0:02:56.1]} 3. Bb5+ {[%clk 0:02:58.2]} 3... Nd7 {[%clk
0:02:55.6]} 4. O-O {[%clk 0:02:57.9]} 4... a6 {[%clk 0:02:52.3]} 5. Bd3 {[%clk
0:02:57.7]} 5... Ngf6 {[%clk 0:02:51.9]} 6. c3 {[%clk 0:02:57.1]} 6... e5 {[%clk
0:02:49.9]} 7. Bc2 {[%clk 0:02:54.7]} 7... Be7 {[%clk 0:02:50]} 8. d4 {[%clk
0:02:54.6]} 8... cxd4 {[%clk 0:02:49.3]} 9. cxd4 {[%clk 0:02:54.4]} 9... O-O
{[%clk 0:02:50]} 10. d5 {[%clk 0:02:54]} 10... b5 {[%clk 0:02:48.3]} 11. a4
{[%clk 0:02:52.4]} 11... b4 {[%clk 0:02:48.6]} 12. Nbd2 {[%clk 0:02:49.4]} 12...
Nc5 {[%clk 0:02:48.6]} 13. Re1 {[%clk 0:02:49.7]} 13... Bg4 {[%clk 0:02:47.9]}
14. h3 {[%clk 0:02:48.8]} 14... Bh5 {[%clk 0:02:47.9]} 15. Nb3 {[%clk
0:02:40.7]} 15... Nxb3 {[%clk 0:02:41.9]} 16. Bxb3 {[%clk 0:02:41.6]} 16... Bg6
{[%clk 0:02:41.4]} 17. Bc2 {[%clk 0:02:41]} 17... Rc8 {[%clk 0:02:37.3]} 18. Bd3
{[%clk 0:02:39]} 18... a5 {[%clk 0:02:36.8]} 19. Bd2 {[%clk 0:02:34]} 19... Nd7
{[%clk 0:02:36.2]} 20. Rc1 {[%clk 0:02:17]} 20... Nc5 {[%clk 0:02:35.6]} 21. Bc2
{[%clk 0:02:07.2]} 21... Qd7 {[%clk 0:02:34.2]} 22. b3 {[%clk 0:02:05.6]} 22...
h6 {[%clk 0:02:29.8]} 23. Qe2 {[%clk 0:01:55.2]} 23... Bd8 {[%clk 0:02:25.6]}
24. g4 {[%clk 0:01:42.1]} 24... Bb6 {[%clk 0:02:24.7]} 25. Nh4 {[%clk
0:01:41.7]} 25... Bh7 {[%clk 0:02:21.8]} 26. Nf5 {[%clk 0:01:39.1]} 26... Qd8
{[%clk 0:01:53.6]} 27. Be3 {[%clk 0:01:28.8]} 27... Qf6 {[%clk 0:01:51.9]} 28.
Qf3 {[%clk 0:01:20.4]} 28... Kh8 {[%clk 0:01:47.5]} 29. Qg3 {[%clk 0:01:15.8]}
29... Bd8 {[%clk 0:01:19.2]} 30. Bxc5 {[%clk 0:01:01.5]} 30... Rxc5 {[%clk
0:01:16.8]} 31. Bd3 {[%clk 0:01:01.9]} 31... Bb6 {[%clk 0:01:14.3]} 32. Rxc5
{[%clk 0:00:58.8]} 32... Bxc5 {[%clk 0:01:15.2]} 33. h4 {[%clk 0:00:49.9]} 33...
Bxf5 {[%clk 0:01:05.6]} 34. exf5 {[%clk 0:00:46.2]} 34... g5 {[%clk 0:01:05.3]}
35. hxg5 {[%clk 0:00:40.6]} 35... hxg5 {[%clk 0:01:05.3]} 36. Kg2 {[%clk
0:00:37.9]} 36... Kg7 {[%clk 0:01:05.9]} 37. Rh1 {[%clk 0:00:36.6]} 37... Rh8
{[%clk 0:01:03.5]} 38. Rxh8 {[%clk 0:00:36]} 38... Kxh8 {[%clk 0:01:04.4]} 39.
Be4 {[%clk 0:00:32.6]} 39... Kg7 {[%clk 0:01:01.9]} 40. Qh3 {[%clk 0:00:26.1]}
40... Qh6 {[%clk 0:00:42.3]} 41. f6+ {[%clk 0:00:16.2]} 41... Qxf6 {[%clk
0:00:42.2]} 42. Qh7+ {[%clk 0:00:16.3]} 42... Kf8 {[%clk 0:00:42.4]} 43. Bf5
{[%clk 0:00:16.9]} 43... Qg7 {[%clk 0:00:40.5]} 44. Qh3 {[%clk 0:00:11.9]} 44...
Ke7 {[%clk 0:00:40.3]} 45. Qd3 {[%clk 0:00:11.9]} 45... Qh6 {[%clk 0:00:36.5]}
46. Qb5 {[%clk 0:00:08.9]} 46... Qh4 {[%clk 0:00:36.9]} 47. Qd7+ {[%clk
0:00:08.9]} 47... Kf8 {[%clk 0:00:35.6]} 48. Qd8+ {[%clk 0:00:08.2]} 48... Kg7
{[%clk 0:00:35.9]} 49. f3 {[%clk 0:00:02.7]} 49... Qf2+ {[%clk 0:00:36.2]} 50.
Kh3 {[%clk 0:00:02.3]} 50... Qf1+ {[%clk 0:00:36.1]} 51. Kh2 {[%clk 0:00:02.1]}
51... Bg1+ {[%clk 0:00:35.6]} 52. Kg3 {[%clk 0:00:01.7]} 52... Qf2+ {[%clk
0:00:34.9]} 53. Kh3 {[%clk 0:00:01.8]} 53... Qh2# {[%clk 0:00:35.7]} 0-1